bitfinex/quotes_SOLUSD_20240716
["timestamp","ask_amount","ask_price","bid_price","bid_amount"]
[1721114417008,7.22456752,155.51,155.37,42.98]
[1721114417188,28.7311,155.5,155.34,42.98]
[1721114417386,0.79396752,155.49,155.34,42.98]
[1721114417603,0.79396752,155.48,155.35,42.98]
[1721114418617,0.79396752,155.48,155.36,11.28674816]
[1721114418908,0.79396752,155.49,155.36,11.28674816]
[1721114419286,22.3002,155.5,155.36,11.28674816]
[1721114419287,0.79396752,155.48,155.38,52.98]
[1721114419493,22.3002,155.5,155.38,42.98]
[1721114419494,0.79396752,155.49,155.38,42.98]
[1721114419699,0.79396752,155.48,155.39,20.0]
[1721114420290,0.79396752,155.48,155.36,20.0]
[1721114420799,16.0327,155.47,155.36,20.0]
[1721114421120,0.79396752,155.46,155.36,20.0]
[1721114421320,16.0327,155.47,155.35,42.98]
[1721114421321,6.3192,155.44,155.35,42.98]
[1721114421522,0.79396752,155.43,155.32,42.98]
[1721114421687,0.79396752,155.42,155.32,42.98]
[1721114421992,0.79396752,155.42,155.33,1.28715308]
[1721114422187,0.79396752,155.42,155.34,1.28704126]
[1721114422390,15.1607,155.41,155.32,6.4325]
[1721114422585,7.12636752,155.4,155.32,6.4325]
[1721114422813,0.79396752,155.39,155.32,6.4325]
[1721114422989,0.79396752,155.39,155.27,6.68871847]
[1721114423623,15.803,155.38,155.27,6.68871847]
[1721114423798,0.79396752,155.37,155.27,6.68871847]
[1721114424593,0.79396752,155.37,155.28,0.63366904]
[1721114424891,0.79396752,155.37,155.27,6.68871847]
[1721114425094,0.79396752,155.37,155.23,42.98]
[1721114425293,0.79396752,155.37,155.24,6.69158364]
[1721114425489,6.5586,155.35,155.24,6.69158364]
[1721114425714,0.79396752,155.34,155.24,6.69158364]
[1721114427118,15.4412,155.33,155.24,6.69158364]
[1721114427417,0.79396752,155.32,155.24,6.69158364]
[1721114427942,0.79396752,155.32,155.25,1.28733738]
[1721114428426,0.79396752,155.32,155.24,6.69158364]
[1721114428594,0.79396752,155.32,155.25,1.28795207]
[1721114429426,0.79396752,155.32,155.24,6.69158364]
[1721114429590,0.79396752,155.32,155.25,20.0]
[1721114430328,6.6625,155.3,155.2,6.6922346]
[1721114430529,0.79396752,155.29,155.16,52.98]
[1721114430718,0.79396752,155.29,155.17,1.28829985]
[1721114430907,0.79396752,155.29,155.17,6.69312258]
[1721114431121,16.4866,155.28,155.17,6.69312258]
[1721114431403,0.79396752,155.27,155.17,6.69312258]
[1721114431622,0.79396752,155.26,155.17,6.69312258]
[1721114432009,17.28056752,155.28,155.17,6.69312258]
[1721114432423,17.28056752,155.28,155.18,20.0]
[1721114432719,17.28056752,155.28,155.17,6.69312258]
[1721114433107,23.72066752,155.28,155.17,6.69312258]
[1721114433406,17.28056752,155.28,155.17,6.69312258]
[1721114434011,17.28056752,155.28,155.18,20.0]
[1721114434743,17.28056752,155.28,155.17,6.69312258]
[1721114434744,6.64,155.27,155.17,6.69312258]
[1721114434908,0.79396752,155.26,155.14,0.7943647]
[1721114435411,0.79396752,155.26,155.15,1.28863591]
[1721114435612,0.79396752,155.26,155.14,0.7943647]
[1721114436204,0.79396752,155.26,155.15,1.28852552]
[1721114436408,0.79396752,155.26,155.14,20.7943647]
[1721114436836,0.79396752,155.26,155.15,1.28859869]
[1721114437041,0.79396752,155.26,155.15,11.28859869]
[1721114437211,0.79396752,155.26,155.15,1.28859869]
[1721114437411,0.79396752,155.26,155.14,20.7943647]
[1721114437722,0.79396752,155.26,155.15,1.28854357]
[1721114438118,0.79396752,155.26,155.15,1.28853432]
[1721114438452,0.79396752,155.26,155.14,30.7943647]
[1721114438613,7.43396752,155.27,155.16,10.0]
[1721114438918,0.79396752,155.26,155.14,30.7943647]
[1721114439120,0.79396752,155.26,155.17,20.0]
[1721114439333,0.79396752,155.26,155.14,30.7943647]
[1721114439531,0.79396752,155.26,155.15,1.28848463]
[1721114440210,0.79396752,155.26,155.16,10.0]
[1721114440442,7.43396752,155.27,155.17,21.28831495]
[1721114440648,7.43396752,155.27,155.18,1.288219]
[1721114441652,6.64,155.27,155.19,42.98]
[1721114441828,6.64,155.27,155.2,21.28805318]
[1721114442030,6.64,155.27,155.21,1.28803043]
[1721114442229,6.64,155.27,155.22,42.98]
[1721114442432,6.64,155.27,155.23,21.28798355]
[1721114442629,16.4866,155.28,155.23,20.0]
[1721114442830,6.3945,155.31,155.25,52.98]
[1721114443018,6.3945,155.31,155.26,20.0]
[1721114443828,0.79396752,155.3,155.26,20.0]
[1721114444021,6.3945,155.31,155.23,20.0]
[1721114444022,7.18846752,155.31,155.23,20.0]
[1721114445020,0.79396752,155.3,155.23,20.0]
[1721114445630,0.79396752,155.3,155.2,20.0]
[1721114446356,16.4342,155.29,155.16,49.67668478]
[1721114446527,0.79396752,155.28,155.16,49.67668478]
[1721114447032,6.2731,155.26,155.16,49.67668478]
[1721114447237,0.79396752,155.25,155.16,6.69668478]
[1721114447445,16.4744,155.24,155.13,10.0]
[1721114447621,0.79396752,155.23,155.13,10.0]
[1721114447825,0.79396752,155.23,155.13,6.69720951]
[1721114448137,0.79396752,155.23,155.15,1.28865368]
[1721114450029,16.4744,155.24,155.16,19.33]
[1721114450357,16.4744,155.24,155.17,20.0]
[1721114450514,16.4744,155.24,155.16,20.0]
[1721114450722,16.4744,155.24,155.15,20.0]
[1721114451042,16.4744,155.24,155.16,1.2884615]
[1721114451751,16.4744,155.24,155.16,30.6184615]
[1721114451931,16.4744,155.24,155.17,20.0]
[1721114452251,16.4744,155.24,155.18,1.28828979]
[1721114453332,6.2731,155.26,155.18,1.28828979]
[1721114453642,16.2034,155.28,155.21,29.33]
[1721114453840,16.2034,155.28,155.22,64.26789549]
[1721114454158,16.2034,155.28,155.22,62.98]
[1721114454332,16.2034,155.28,155.23,1.28802573]
[1721114455045,16.2034,155.28,155.22,62.98]
[1721114455548,16.2034,155.28,155.22,20.0]
[1721114456050,16.2034,155.28,155.19,49.33]
[1721114456922,16.2034,155.28,155.2,1.28802434]
[1721114457426,16.2034,155.28,155.19,39.33]
[1721114457837,16.2034,155.28,155.2,1.28802435]
[1721114458022,16.2034,155.28,155.19,39.33]
[1721114458519,16.2034,155.28,155.21,10.0]
[1721114458725,6.3566,155.3,155.22,40.61794589]
[1721114459041,6.3566,155.3,155.24,42.98]
[1721114459218,6.3566,155.3,155.25,21.28770545]
[1721114460635,6.3566,155.3,155.25,31.28770545]
[1721114460945,6.3566,155.3,155.26,1.28767709]
[1721114461143,6.3566,155.3,155.25,20.0]
[1721114461929,0.79396752,155.29,155.22,20.0]
[1721114462226,6.3566,155.3,155.22,21.28792541]
[1721114462530,0.79396752,155.29,155.21,42.98]
[1721114463153,0.79396752,155.29,155.22,1.28803551]
[1721114463849,7.15056752,155.3,155.22,1.28803551]
[1721114464052,7.15056752,155.3,155.23,1.28798501]
[1721114464266,7.15056752,155.3,155.2,1.28803147]
[1721114464462,7.15056752,155.3,155.21,1.28803147]
[1721114464652,0.79396752,155.29,155.21,1.28803147]
[1721114464857,7.15056752,155.3,155.21,1.28803147]
[1721114465365,7.15056752,155.3,155.2,20.0]
[1721114465366,0.79396752,155.29,155.2,20.0]
[1721114465775,16.4663,155.28,155.15,69.00607084]
[1721114465942,0.79396752,155.27,155.16,29.33]
[1721114466139,0.79396752,155.27,155.18,10.0]
[1721114466365,16.4663,155.28,155.19,1.28820068]
[1721114467270,16.4663,155.28,155.19,30.0]
[1721114467469,16.4663,155.28,155.19,72.98]
[1721114467655,16.4663,155.28,155.21,10.0]
[1721114467853,16.4663,155.28,155.22,20.0]
[1721114468074,16.4663,155.28,155.23,1.28796393]
[1721114468370,16.4663,155.28,155.24,1.28788881]
[1721114468870,16.4663,155.28,155.22,20.0]
[1721114469243,6.3566,155.3,155.25,72.31]
[1721114469484,15.944,155.33,155.26,21.2876021]
[1721114469658,15.944,155.33,155.27,1.28754926]
[1721114470462,15.944,155.33,155.26,20.0]
[1721114470972,15.944,155.33,155.27,11.28756203]
[1721114471157,15.944,155.33,155.28,20.0]
[1721114471358,15.944,155.33,155.29,1.28747931]
[1721114471547,15.944,155.33,155.3,1.28747931]
[1721114471755,15.944,155.33,155.27,20.0]
[1721114472151,15.944,155.33,155.28,1.28756957]
[1721114472372,0.79396752,155.32,155.21,10.0]
[1721114472578,0.79396752,155.32,155.19,10.0]
[1721114472952,6.6391,155.31,155.19,29.33]
[1721114473162,6.6391,155.31,155.17,392.69722657]
[1721114473163,15.7542,155.29,155.17,49.67722657]
[1721114473476,6.1095,155.27,155.18,1.28834086]
[1721114473648,0.79396752,155.26,155.17,49.67722657]
[1721114474464,0.79396752,155.26,155.17,6.69722657]
[1721114475460,7.23476752,155.26,155.18,1.28847096]
[1721114475674,0.79396752,155.26,155.18,1.28847096]
[1721114475875,7.23486752,155.26,155.17,6.69722657]
[1721114476060,6.4412,155.25,155.17,6.69722657]
[1721114476261,0.79396752,155.24,155.17,6.69722657]
[1721114476544,6.1095,155.27,155.17,6.69722657]
[1721114476545,0.79396752,155.23,155.18,1.28861304]
[1721114476746,6.4408,155.26,155.18,1.28861304]
[1721114476747,0.79396752,155.25,155.18,1.28861304]
[1721114477548,0.79396752,155.26,155.18,1.28861304]
[1721114477768,0.79396752,155.26,155.18,21.28861304]
[1721114478355,0.79396752,155.26,155.18,20.0]
[1721114478556,0.79396752,155.26,155.15,6.69978876]
[1721114478557,22.6068,155.25,155.15,6.69978876]
[1721114478864,0.79396752,155.24,155.16,20.0]
[1721114479058,0.79396752,155.23,155.17,1.28859698]
[1721114479258,0.79396752,155.23,155.18,1.28859566]
[1721114479462,0.79396752,155.23,155.16,1.28865467]
[1721114480071,6.3468,155.21,155.15,6.69978876]
[1721114480277,0.79396752,155.2,155.15,6.69978876]
[1721114480785,7.14076752,155.21,155.15,7.98860954]
[1721114481078,12.7897,155.21,155.15,7.98860954]
[1721114481254,12.7897,155.21,155.14,0.7943647]
[1721114481255,0.79396752,155.2,155.14,0.7943647]
[1721114481457,15.2741,155.19,155.14,0.7943647]
[1721114481665,0.79396752,155.18,155.14,0.7943647]
[1721114482658,16.06806752,155.19,155.14,0.7943647]
[1721114483062,15.2741,155.19,155.14,0.7943647]
[1721114483685,15.2741,155.19,155.15,1.28886931]
[1721114483880,15.2741,155.19,155.14,0.7943647]
[1721114484582,0.79396752,155.18,155.14,0.7943647]
[1721114490292,15.2741,155.19,155.14,0.7943647]
[1721114493700,15.2741,155.19,155.15,1.28874654]
[1721114495387,21.6001,155.24,155.16,42.98]
[1721114495587,21.6001,155.24,155.17,21.28829137]
[1721114495768,21.6001,155.24,155.18,1.2883114]
[1721114496192,21.6001,155.24,155.14,0.7943647]
[1721114496371,7.23636752,155.23,155.14,0.7943647]
[1721114496986,15.9633,155.21,155.14,0.7943647]
[1721114497287,35.4327,155.26,155.05,15.2741]
[1721114497288,6.5061,155.19,155.05,15.2741]
[1721114497472,16.75726752,155.18,155.06,6.69445663]
[1721114497670,0.79396752,155.17,155.06,6.69445663]
[1721114498402,0.79396752,155.17,155.06,26.02445663]
[1721114498582,15.9633,155.18,155.08,29.33]
[1721114498767,15.9633,155.18,155.09,20.0]
[1721114499179,15.9633,155.18,155.1,1.28892504]
[1721114500990,15.9633,155.18,155.1,73.59892504]
[1721114501193,15.9633,155.18,155.11,20.0]
[1721114501871,15.9633,155.18,155.06,16.69445663]
[1721114502679,15.9633,155.18,155.07,42.98]
[1721114502880,15.9633,155.18,155.1,10.0]
[1721114503094,15.9633,155.18,155.11,1.28882686]
[1721114503270,15.9633,155.18,155.09,20.0]
[1721114503686,15.9633,155.18,155.1,11.28888422]
[1721114503898,15.9633,155.18,155.11,20.0]
[1721114504384,15.9633,155.18,155.08,20.0]
[1721114504779,16.75726752,155.18,155.07,72.31]
[1721114505003,16.75726752,155.18,155.09,10.0]
[1721114505185,15.9633,155.18,155.07,72.31]
[1721114505378,15.9633,155.18,155.09,10.0]
[1721114505586,15.9633,155.18,155.1,1.28890257]
[1721114506194,15.9633,155.18,155.1,20.0]
[1721114506498,15.9633,155.18,155.08,39.33]
[1721114507974,15.9633,155.18,155.09,10.0]
[1721114508211,15.9633,155.18,155.1,20.0]
[1721114508581,16.75726752,155.18,155.1,20.0]
[1721114508780,16.75726752,155.18,155.09,20.0]
[1721114509000,16.75726752,155.18,155.07,78.99700361]
[1721114509001,16.75726752,155.18,155.08,20.0]
[1721114509198,16.75726752,155.18,155.09,1.28901763]
[1721114509412,15.9633,155.18,155.09,11.28901763]
[1721114509582,16.75726752,155.18,155.1,20.0]
[1721114509790,16.75726752,155.18,155.08,20.0]
[1721114509995,15.9633,155.18,155.08,20.0]
[1721114510594,16.75726752,155.18,155.09,1.28901477]
[1721114511106,15.9633,155.18,155.08,20.0]
[1721114511298,16.75726752,155.18,155.09,1.28900566]
[1721114511695,6.012,155.17,155.08,20.0]
[1721114511899,8.90849547,155.26,155.16,42.98]
[1721114512201,22.3836,155.3,155.23,42.98]
[1721114512397,22.3836,155.3,155.24,35.78684239]
[1721114512613,22.3836,155.3,155.24,45.78684239]
[1721114512917,22.3836,155.3,155.26,42.98]
[1721114513114,22.3836,155.3,155.27,21.28771728]
[1721114513318,22.3836,155.3,155.27,20.0]
[1721114515020,22.3836,155.3,155.28,1.28776701]
[1721114515201,6.1173,155.4,155.28,1.28776701]
[1721114515404,16.2013,155.39,155.28,1.28776701]
[1721114515793,16.2013,155.39,155.27,20.0]
[1721114516327,16.2013,155.39,155.28,1.28758386]
[1721114516820,16.2013,155.39,155.27,20.0]
[1721114517023,16.2013,155.39,155.27,21.28768173]
[1721114519120,16.2013,155.39,155.27,20.0]
[1721114519425,22.6367,155.39,155.27,20.0]
[1721114520326,6.4359,155.38,155.27,20.0]
[1721114521228,6.1452,155.37,155.27,20.0]
[1721114521735,6.1452,155.37,155.19,19.33]
[1721114521736,16.5681,155.36,155.24,10.0]
[1721114522025,16.5681,155.36,155.26,42.98]
[1721114522608,16.5681,155.36,155.27,0.90223719]
[1721114522805,16.5681,155.36,155.29,42.98]
[1721114523015,16.5681,155.36,155.3,21.28751141]
[1721114523212,16.5681,155.36,155.3,20.0]
[1721114523823,16.5681,155.36,155.27,20.0]
[1721114524206,16.5681,155.36,155.26,42.98]
[1721114525322,6.5919,155.35,155.2,42.98]
[1721114525628,6.5919,155.35,155.23,42.98]
[1721114525832,6.5919,155.35,155.24,20.0]
[1721114526710,6.5919,155.35,155.26,42.98]
[1721114526908,6.5919,155.35,155.24,30.0]
[1721114526909,6.5919,155.35,155.29,42.98]
[1721114527110,6.5919,155.35,155.3,20.0]
[1721114527607,6.5919,155.35,155.3,21.28775121]
[1721114528418,6.5919,155.35,155.3,20.0]
[1721114529006,6.5919,155.35,155.27,20.0]
[1721114529726,6.5919,155.35,155.18,280.5]
[1721114530035,6.5919,155.35,155.23,42.98]
[1721114531105,6.5919,155.35,155.24,20.0]
[1721114531707,16.385,155.34,155.24,20.0]
[1721114531928,16.385,155.34,155.23,42.98]
[1721114532130,6.4328,155.33,155.23,42.98]
[1721114533218,16.385,155.32,155.2,42.98]
[1721114533814,16.385,155.32,155.21,1.28811169]
[1721114534034,16.385,155.32,155.2,42.98]
[1721114534531,16.385,155.32,155.21,20.0]
[1721114535564,16.385,155.32,155.23,42.98]
[1721114535742,16.385,155.32,155.26,42.98]
[1721114536034,16.385,155.32,155.27,20.0]
[1721114539314,16.385,155.32,155.24,20.0]
[1721114541733,6.0046,155.31,155.2,42.98]
[1721114541942,6.0046,155.31,155.21,1.28816651]
[1721114542625,6.0046,155.31,155.2,42.98]
[1721114542626,15.8661,155.3,155.2,42.98]
[1721114543017,15.8661,155.3,155.21,20.0]
[1721114543421,15.8661,155.3,155.18,42.98]
[1721114543614,15.8661,155.3,155.19,20.0]
[1721114543822,15.8661,155.3,155.2,1.28837052]
[1721114544022,15.8661,155.3,155.2,1.28823856]
[1721114544639,15.8661,155.3,155.21,42.98]
[1721114544840,15.8661,155.3,155.22,21.28813715]
[1721114545351,15.8661,155.3,155.22,20.0]
[1721114546942,6.1206,155.29,155.19,20.0]
[1721114547728,25.6178,155.27,155.17,1.49078624]
[1721114547928,48.87156421,155.37,155.03,260.5]
[1721114547929,6.4442,155.18,155.03,260.5]
[1721114548154,11.3169,155.22,155.08,42.98]
[1721114548625,11.3169,155.22,155.11,42.98]
[1721114549132,11.3169,155.22,155.12,1.28890089]
[1721114549662,11.3169,155.22,155.14,42.98]
[1721114549829,11.3169,155.22,155.15,1.28853858]
[1721114550034,11.3169,155.22,155.14,42.98]
[1721114550333,11.3169,155.22,155.18,38.29]
[1721114550574,11.3169,155.22,155.19,45.0]
[1721114551668,21.74,155.29,155.2,1.28854915]
[1721114551829,21.74,155.29,155.21,39.57827889]
[1721114552038,21.74,155.29,155.22,45.0]
[1721114552237,21.74,155.29,155.23,1.28825597]
[1721114552437,21.74,155.29,155.22,45.0]
[1721114553964,21.74,155.29,155.12,48.29]
[1721114553965,22.8744,155.28,155.16,38.29]
[1721114554172,29.3147,155.28,155.16,38.29]
[1721114555043,22.8744,155.28,155.16,38.29]
[1721114555458,6.4404,155.27,155.16,38.29]
[1721114555650,29.3224,155.27,155.16,38.29]
[1721114556166,22.882,155.27,155.16,38.29]
[1721114556744,22.882,155.27,155.17,20.0]
[1721114556943,22.882,155.27,155.18,45.0]
[1721114557142,15.5071,155.26,155.17,20.0]
[1721114557340,6.0135,155.25,155.17,20.0]
[1721114557957,6.0135,155.25,155.18,45.0]
[1721114560038,6.0135,155.25,155.19,38.7275844]
[1721114560241,6.0135,155.25,155.2,45.0]
[1721114560567,6.0135,155.25,155.19,38.29]
[1721114560759,6.0135,155.25,155.17,20.0]
[1721114560935,6.0135,155.25,155.18,45.0]
[1721114561743,6.0135,155.25,155.18,45.32268784]
[1721114561959,6.0135,155.25,155.18,83.61268784]
[1721114562148,6.0135,155.25,155.19,1.2885561]
[1721114562355,6.0135,155.25,155.18,46.28858139]
[1721114562668,6.0135,155.25,155.18,45.0]
[1721114563566,6.0135,155.25,155.19,20.0]
[1721114563863,6.0135,155.25,155.2,84.57841897]
[1721114564170,6.0135,155.25,155.21,20.0]
[1721114564471,15.5071,155.26,155.22,46.2882647]
[1721114565258,15.5071,155.26,155.22,45.0]
[1721114567067,15.5071,155.26,155.15,38.29]
[1721114568573,15.5071,155.26,155.16,20.0]
[1721114568965,15.5071,155.26,155.17,45.0]
[1721114569167,15.5071,155.26,155.18,20.0]
[1721114569367,15.5071,155.26,155.19,45.0]
[1721114570784,6.3373,155.25,155.15,38.29]
[1721114571074,12.7786,155.25,155.12,38.29]
[1721114571645,6.3373,155.25,155.12,38.29]
[1721114572643,12.7785,155.25,155.12,38.29]
[1721114572850,32.1085,155.25,155.12,38.29]
[1721114573045,42.3444,155.24,155.13,20.0]
[1721114573251,42.3444,155.24,155.12,38.29]
[1721114573252,25.7721,155.23,155.12,38.29]
[1721114574053,19.33,155.23,155.12,38.29]
[1721114574262,23.3132,155.2,155.09,38.29]
[1721114574577,6.4439,155.19,155.09,38.29]
[1721114576674,6.4439,155.19,155.1,45.0]
[1721114576857,49.0865,155.2,155.1,45.0]
[1721114577063,41.7464,155.17,155.05,38.29]
[1721114577567,15.9715,155.17,155.05,38.29]
[1721114577764,15.9715,155.17,155.06,1.2893425]
[1721114577961,15.9715,155.17,155.08,38.29]
[1721114578160,15.9715,155.17,155.09,0.33112715]
[1721114578360,15.9715,155.17,155.09,21.28921055]
[1721114578569,15.9715,155.17,155.1,83.29]
[1721114578977,15.9715,155.17,155.11,1.28920112]
[1721114579362,15.9715,155.17,155.1,83.29]
[1721114580066,15.9715,155.17,155.1,45.0]
[1721114581880,15.9715,155.17,155.11,1.28933905]
[1721114582087,15.9715,155.17,155.1,45.0]
[1721114582290,6.2923,155.25,155.16,38.29]
[1721114582466,21.5813,155.25,155.17,66.28865362]
[1721114582676,21.5813,155.25,155.18,1.28855576]
[1721114582967,21.5813,155.25,155.17,65.99880472]
[1721114583274,21.5813,155.25,155.18,1.28870975]
[1721114583690,0.36790664,155.24,155.18,1.28870975]
[1721114583984,0.36790664,155.24,155.17,45.0]
[1721114584294,0.36790664,155.24,155.18,1.28863362]
[1721114584686,0.36790664,155.24,155.17,45.0]
[1721114584687,0.36790664,155.24,155.17,46.28863236]
[1721114585077,0.36790664,155.24,155.18,1.28863207]
[1721114585391,0.36790664,155.24,155.17,45.0]
[1721114585599,0.36790664,155.24,155.18,1.28862808]
[1721114585794,0.36790664,155.24,155.17,45.0]
[1721114587288,0.36790664,155.24,155.18,1.00288074]
[1721114588080,0.36790664,155.24,155.17,45.0]
[1721114591072,6.442,155.23,155.07,10.0]
[1721114591287,0.37375226,155.22,155.07,10.0]
[1721114591599,22.7823,155.21,155.09,44.37782208]
[1721114592095,0.37375226,155.2,155.09,44.37782208]
[1721114593491,0.37375226,155.2,155.09,11.28782208]
[1721114593691,0.37375226,155.2,155.11,43.09]
[1721114593892,0.37375226,155.2,155.12,46.28880293]
[1721114594066,0.37375226,155.2,155.13,20.0]
[1721114594267,0.37375226,155.2,155.14,46.28863678]
[1721114594472,0.37375226,155.2,155.15,20.0]
[1721114594775,0.37375226,155.2,155.16,45.0]
[1721114595992,0.37375226,155.2,155.15,20.0]
[1721114596207,0.37375226,155.2,155.12,0.42874066]
[1721114596375,0.37375226,155.2,155.08,43.09]
[1721114596579,0.37375226,155.2,155.09,21.28893515]
[1721114597497,0.37375226,155.2,155.11,43.09]
[1721114597706,0.37375226,155.2,155.12,66.2888429]
[1721114598303,0.37375226,155.2,155.12,65.0]
[1721114598476,0.37375226,155.2,155.13,1.28884393]
[1721114598989,0.37375226,155.2,155.12,65.0]
[1721114599493,0.37375226,155.2,155.13,1.28884507]
[1721114599713,0.37375226,155.2,155.14,43.09]
[1721114599880,0.37375226,155.2,155.15,46.28875057]
[1721114600485,0.37375226,155.2,155.15,45.0]
[1721114601607,0.37375226,155.2,155.16,1.28893502]
[1721114603297,0.37375226,155.2,155.15,45.0]
[1721114604698,0.37375226,155.2,155.16,1.28895626]
[1721114604908,0.37375226,155.2,155.15,45.0]
[1721114608011,0.37375226,155.2,155.16,1.28882156]
[1721114608501,0.37375226,155.2,155.15,45.0]
[1721114609488,0.37375226,155.2,155.14,38.31]
[1721114609787,0.37375226,155.2,155.15,1.28898542]
[1721114611204,0.37375226,155.2,155.15,46.28898542]
[1721114612090,0.37375226,155.2,155.15,45.0]
[1721114612401,0.37375226,155.2,155.14,45.0]
[1721114612610,0.37375226,155.2,155.14,46.28884575]
[1721114612977,0.37375226,155.2,155.14,45.0]
[1721114613982,0.37375226,155.2,155.14,46.28898318]
[1721114615986,0.37375226,155.2,155.14,45.0]
[1721114616587,6.81735226,155.2,155.14,45.0]
[1721114616814,0.37375226,155.2,155.14,45.0]
[1721114620013,0.37375226,155.2,155.1,38.31]
[1721114620316,0.37375226,155.2,155.11,1.28912764]
[1721114621128,0.37375226,155.2,155.13,38.31]
[1721114621296,0.37375226,155.2,155.14,46.28878273]
[1721114621498,0.37375226,155.2,155.15,1.28880249]
[1721114623205,0.37375226,155.2,155.14,45.0]
[1721114623515,0.37375226,155.2,155.15,1.28874605]
[1721114623711,0.37375226,155.2,155.17,38.31]
[1721114623908,0.37375226,155.2,155.18,45.0]
[1721114624612,0.37375226,155.2,155.18,46.28860583]
[1721114625005,0.37375226,155.2,155.18,45.0]
[1721114626007,0.37375226,155.2,155.18,46.2885548]
[1721114626228,0.37375226,155.2,155.18,45.0]
[1721114626533,0.37375226,155.2,155.17,38.31]
[1721114626824,0.37375226,155.2,155.14,1.28871899]
[1721114627027,6.552,155.18,155.13,38.31]
[1721114627229,0.42339507,155.17,155.1,39.59889146]
[1721114627532,0.42339507,155.17,155.11,1.28905382]
[1721114629717,0.42339507,155.17,155.11,46.28905382]
[1721114632816,0.42339507,155.17,155.13,38.31]
[1721114633021,0.42339507,155.17,155.14,46.28881335]
[1721114633229,0.42339507,155.17,155.15,1.2888056]
[1721114634815,0.42339507,155.17,155.14,46.28880341]
[1721114635233,0.42339507,155.17,155.14,1.28894968]
[1721114635441,0.42339507,155.17,155.13,38.31]
[1721114637016,0.42339507,155.17,155.1,38.31]
[1721114637216,0.42339507,155.17,155.11,1.28915688]
[1721114638042,6.2646,155.16,155.11,1.28915688]
[1721114638244,0.42339507,155.15,155.11,1.28915688]
[1721114638728,0.42339507,155.15,155.11,46.28915688]
[1721114646719,0.42339507,155.15,155.11,1.28915688]
[1721114646917,0.42339507,155.15,155.1,46.28914341]
[1721114647626,0.42339507,155.15,155.12,38.31]
[1721114647824,0.42339507,155.15,155.13,46.28894288]
[1721114648232,0.42339507,155.15,155.14,19.16]
[1721114648438,0.42339507,155.15,155.14,64.16]
[1721114648944,0.42339507,155.15,155.13,1.28894288]
[1721114648945,0.42339507,155.15,155.04,51.1459]
[1721114649245,0.42339507,155.15,155.13,19.16]
[1721114649824,0.42339507,155.15,155.05,1.28916958]
[1721114650029,26.02879507,155.15,155.05,1.28916958]
[1721114650341,0.42339507,155.15,155.12,19.16]
[1721114651151,0.42339507,155.15,155.05,1.28916958]
[1721114651322,0.42339507,155.15,155.13,19.16]
[1721114652143,0.42339507,155.15,155.12,19.16]
[1721114652342,0.42339507,155.15,155.07,38.35]
[1721114652529,0.42339507,155.15,155.08,1.28912613]
[1721114653649,0.42339507,155.15,155.1,38.35]
[1721114653835,0.42339507,155.15,155.11,1.28904301]
[1721114654019,0.42339507,155.15,155.1,38.35]
[1721114654225,0.42339507,155.15,155.11,1.28895998]
[1721114655965,0.42339507,155.15,155.11,1.28902457]
[1721114657031,0.42339507,155.15,155.1,38.35]
[1721114657555,0.42339507,155.15,155.11,1.28897019]
[1721114659468,0.42339507,155.15,155.08,38.35]
[1721114659756,0.42339507,155.15,155.09,1.2890744]
[1721114660440,6.1259,155.14,155.09,1.2890744]
[1721114660940,0.4286872,155.13,155.09,1.2890744]
[1721114661256,0.4286872,155.13,155.05,39.63927726]
[1721114661762,0.4286872,155.13,155.08,38.35]
[1721114661965,0.4286872,155.13,155.09,1.28914712]
[1721114672376,0.4286872,155.13,155.12,19.17]
[1721114679256,0.4286872,155.13,155.07,1.28907727]
[1721114679465,0.4286872,155.13,155.12,19.17]